bitfinex-derivatives/quotes_ETHF0:USTF0_20230702
["timestamp","ask_amount","ask_price","bid_price","bid_amount"]
[1688332845511,3.28812,1923.3,1923.2,3.86569849]
[1688332847508,3.28812,1923.3,1923.2,9.09559849]
[1688332848809,0.01912,1923.3,1923.2,12.37759849]
[1688332852710,0.01912,1923.3,1923.2,12.34759849]
[1688332865128,1.36124661,1923.4,1923.2,12.34759849]
[1688332865325,0.43222158,1923.3,1923.2,12.34759849]
[1688332865718,1.36124661,1923.4,1923.2,12.34759849]
[1688332865920,1.36124661,1923.4,1923.3,5.1883]
[1688332866119,1.38036636,1923.4,1923.3,5.50025]
[1688332870837,1.66708271,1923.4,1923.3,0.31195]
[1688332871740,1.38036636,1923.4,1923.3,0.31195]
[1688332872339,1.66708271,1923.4,1923.3,0.31195]
[1688332872737,1.66708271,1923.4,1923.2,11.56768849]
[1688332872937,1.64796296,1923.4,1923.2,11.56768849]
[1688332874845,8.30111957,1923.3,1922.7,3.2078]
[1688332875028,3.282,1922.9,1922.7,3.2078]
[1688332875239,3.282,1922.9,1922.8,356.09416698]
[1688332875437,3.282,1922.9,1922.8,361.20926698]
[1688332876134,3.282,1922.9,1922.8,360.80916698]
[1688332877837,3.282,1922.9,1922.8,355.69406698]
[1688332884640,3.69805019,1922.9,1922.8,355.69406698]
[1688332888146,3.69805019,1922.9,1922.8,360.95506698]
[1688332888849,5.22059569,1922.9,1922.8,360.95506698]
[1688332890448,1.93859569,1922.9,1922.8,364.23706698]
[1688332890748,0.93648183,1923.0,1922.8,364.23706698]
[1688332892752,4.21848183,1923.0,1922.8,360.95506698]
[1688332893553,6.23311719,1923.0,1922.8,360.95506698]
[1688332895451,6.23311719,1923.0,1922.8,366.06086698]
[1688332895654,3.281,1922.9,1922.8,366.06086698]
[1688332897842,3.281,1922.9,1922.8,10.3668]
[1688332898248,3.75455376,1922.9,1922.8,10.3668]
[1688332898548,4.69103559,1922.9,1922.8,10.3668]
[1688332898749,4.40431924,1922.9,1922.8,10.3668]
[1688332898950,3.46783741,1922.9,1922.8,10.3668]
[1688332899865,0.18683741,1922.9,1922.8,13.7528]
[1688332900057,2.95111719,1923.0,1922.8,13.7528]
[1688332900058,2.01463536,1923.0,1922.8,13.7528]
[1688332900351,8.281,1923.2,1922.9,3.2078]
[1688332900352,0.93648183,1923.1,1922.9,3.2078]
[1688332900548,1.22319818,1923.1,1922.9,3.2078]
[1688332901160,1.22319818,1923.1,1923.0,5.0257]
[1688332901460,1.24231999,1923.1,1923.0,5.0257]
[1688332902660,1.55429999,1923.1,1923.0,5.33769]
[1688332903353,1.53517818,1923.1,1923.0,5.33769]
[1688332904460,1.55429998,1923.1,1923.0,5.33769]
[1688332907265,1.53517818,1923.1,1923.0,5.33769]
[1688332907655,0.90641651,1923.1,1923.0,5.33769]
[1688332908562,1.84289834,1923.1,1923.0,5.33769]
[1688332909866,0.90641651,1923.1,1923.0,5.33769]
[1688332911261,0.90641651,1923.1,1923.0,10.13139]
[1688332913064,1.31438749,1923.1,1923.0,10.13139]
[1688332913265,2.25086932,1923.1,1923.0,10.13139]
[1688332914365,1.96415297,1923.1,1923.0,10.13139]
[1688332917466,4.4042248,1923.3,1923.2,49.40743291]
[1688332917673,7.99206266,1923.3,1923.2,49.40743291]
[1688332917872,5.92327223,1923.3,1923.2,49.40743291]
[1688332919875,6.34964875,1923.3,1923.2,49.40743291]
[1688332925269,6.58048785,1923.3,1923.2,49.40743291]
[1688332928474,9.86248785,1923.3,1923.2,48.60013442]
[1688332928974,11.93127828,1923.3,1923.2,48.60013442]
[1688332929777,19.43539528,1923.3,1923.2,48.60013442]
[1688332933882,19.43539528,1923.3,1923.2,48.17745442]
[1688332935488,19.14867893,1923.3,1923.2,48.17745442]
[1688332935686,19.43539528,1923.3,1923.2,48.17745442]
[1688332936286,19.43539528,1923.3,1923.2,48.13745442]
[1688332937387,20.3719961,1923.3,1923.2,48.13745442]
[1688332938989,20.3719961,1923.3,1923.2,47.71235442]
[1688332943896,20.3719961,1923.3,1923.2,47.30335442]
[1688332945200,20.08527975,1923.3,1923.2,47.30335442]
[1688332947502,20.3719961,1923.3,1923.2,47.30335442]
[1688332948701,20.3719961,1923.3,1923.2,45.73835442]
[1688332948903,20.3719961,1923.3,1923.2,45.34472936]
[1688332949306,20.3719961,1923.3,1923.2,50.37492936]
[1688332952310,20.3719961,1923.3,1923.2,49.96180936]
[1688332952504,20.3719961,1923.3,1923.2,49.54179936]
[1688332955608,20.3719961,1923.3,1923.2,54.77659936]
[1688332958924,11.45248932,1923.3,1923.2,55.19254936]
[1688332959211,7.23037232,1923.3,1923.2,55.19254936]
[1688332962712,5.31973308,1923.4,1923.3,0.104]
[1688332962713,0.00779308,1923.4,1923.3,0.104]
[1688332962919,3.19524285,1923.4,1923.3,0.98342412]
[1688332963118,1.97904285,1923.4,1923.3,0.98342412]
[1688332970225,2.15426011,1923.4,1923.3,0.98342412]
[1688332974224,2.44097646,1923.4,1923.3,0.31194]
[1688332976428,2.15426011,1923.4,1923.3,0.31194]
[1688332977631,2.44097646,1923.4,1923.3,0.31194]
[1688332979733,3.282,1923.3,1923.2,45.41265467]
[1688332979919,12.43254389,1923.3,1923.2,22.10992637]
[1688332980226,12.53643847,1923.3,1923.2,13.36190491]
[1688332980425,20.04055547,1923.3,1923.2,11.68147491]
[1688332980623,20.04055547,1923.3,1923.2,11.26969221]
[1688332980827,20.04055547,1923.3,1923.2,11.10666221]
[1688332981130,20.04055547,1923.3,1923.2,9.85222719]
[1688332981332,12.43254389,1923.3,1923.2,9.85222719]
[1688332981537,12.43254389,1923.3,1923.2,9.92168271]
[1688332982730,5.0,1923.0,1922.7,5.35784092]
[1688332982937,3.282,1922.8,1922.7,5.04580092]
[1688332983133,3.59402,1922.8,1922.7,5.04580092]
[1688332983934,3.59402,1922.8,1922.7,5.1263307]
[1688332985328,3.59402,1922.8,1922.7,0.08052978]
[1688332985835,3.59402,1922.8,1922.6,3.2078]
[1688332986036,3.55571635,1922.7,1922.6,3.2078]
[1688332986238,3.86775635,1922.7,1922.6,3.2078]
[1688332986637,4.43524047,1922.7,1922.6,3.2078]
[1688332987936,7.71724047,1922.7,1922.6,3.2078]
[1688332988538,7.71724047,1922.7,1922.6,2.79628]
[1688332988738,7.71724047,1922.7,1922.6,2.68633]
[1688332988933,7.71724047,1922.7,1922.6,0.31205]
[1688332989828,7.71724047,1922.7,1922.5,0.78794173]
[1688332990036,3.59405,1922.6,1922.5,0.78794173]
[1688332990434,3.59405,1922.6,1922.5,0.91644158]
[1688332991330,3.59405,1922.6,1922.3,13.44928158]
[1688332991331,8.59405,1922.6,1922.3,13.44928158]
[1688332991537,3.282,1922.4,1922.3,13.44928158]
[1688332991744,3.59408,1922.4,1922.3,10.24148158]
[1688333000248,3.59408,1922.4,1922.3,9.94148158]
[1688333000449,3.59408,1922.4,1922.3,10.06464406]
[1688333004042,3.281,1922.4,1922.3,10.06464406]
[1688333004242,3.59309,1922.4,1922.3,10.06464406]
[1688333005739,4.01519162,1922.4,1922.3,10.06464406]
[1688333012050,4.30190797,1922.4,1922.3,10.06464406]
[1688333016851,5.83515104,1922.4,1922.3,10.06464406]
[1688333017861,5.83515104,1922.4,1922.3,9.74816248]
[1688333018652,10.83515104,1922.4,1922.3,0.12316248]
[1688333019056,10.83515104,1922.4,1922.2,0.31992295]
[1688333019258,3.84948412,1922.3,1922.2,0.31992295]
[1688333019457,0.28671635,1922.2,1922.1,3.20780001]
[1688333019769,3.59312,1922.2,1922.1,3.67600001]
[1688333020158,3.59312,1922.2,1922.1,13.51170001]
[1688333020359,3.87983635,1922.2,1922.1,13.51170001]
[1688333020554,3.59312,1922.2,1922.1,13.51170001]
[1688333020958,3.87983635,1922.2,1922.1,13.51170001]
[1688333021357,3.59312,1922.2,1922.1,13.51170001]
[1688333021557,3.87983635,1922.2,1922.1,13.51170001]
[1688333022874,3.59312,1922.2,1922.1,13.51170001]
[1688333023063,3.87983635,1922.2,1922.1,13.51170001]
[1688333023364,3.59312,1922.2,1922.1,13.51170001]
[1688333025772,3.59312,1922.2,1922.1,13.63483923]
[1688333028771,3.59312,1922.2,1922.1,10.73915922]
[1688333029068,3.59312,1922.2,1922.1,13.94695922]
[1688333029471,3.87983635,1922.2,1922.1,13.94695922]
[1688333032072,4.28895244,1922.2,1922.1,13.94695922]
[1688333032274,5.22579338,1922.2,1922.1,13.94695922]
[1688333032566,4.93907703,1922.2,1922.1,13.94695922]
[1688333032773,4.00223609,1922.2,1922.1,13.94695922]
[1688333032978,4.28895244,1922.2,1922.1,13.94695922]
[1688333033172,5.22579338,1922.2,1922.1,13.94695922]
[1688333034174,4.93907703,1922.2,1922.1,13.94695922]
[1688333034378,4.00223609,1922.2,1922.1,13.94695922]
[1688333035276,0.93684094,1922.3,1922.2,0.104]
[1688333035575,0.01,1922.4,1922.2,4.26560412]
[1688333035782,0.01,1922.4,1922.3,6.4898]
[1688333035982,0.01,1922.4,1922.3,6.8019]
[1688333038676,0.43086768,1922.4,1922.3,6.9059]
[1688333038884,0.01,1922.4,1922.3,6.9059]
[1688333039474,0.93684094,1922.9,1922.4,0.56748412]
[1688333039684,0.93684094,1922.9,1922.7,6.4898]
[1688333039985,0.93684094,1922.9,1922.8,0.31202]
[1688333040184,5.15393094,1923.0,1922.8,0.87950412]
[1688333040876,0.07330538,1922.9,1922.8,0.87950412]
[1688333042788,3.35430538,1922.9,1922.8,5.75030412]
[1688333043788,3.66630538,1922.9,1922.8,0.87950412]
[1688333044285,3.35430538,1922.9,1922.8,5.75030412]
[1688333044487,3.66631538,1922.9,1922.8,5.75030412]
[1688333047497,3.35430538,1922.9,1922.8,5.75030412]
[1688333047995,0.07330538,1922.9,1922.8,9.10630412]
[1688333049785,0.41268318,1923.0,1922.8,9.13630412]
[1688333049993,0.00780072,1923.1,1922.9,6.80181]
[1688333050190,0.00780072,1923.1,1923.0,0.56748412]
[1688333050390,0.00780072,1923.1,1923.0,0.87947412]
[1688333052689,0.00780072,1923.1,1923.0,4.16147412]
[1688333052889,0.41584274,1923.1,1923.0,4.26547412]
[1688333053192,1.24912154,1923.5,1923.1,0.104]
[1688333053495,0.28709904,1923.4,1923.2,7.36924412]
[1688333054196,0.59902904,1923.4,1923.2,7.36924412]
[1688333055592,0.28709904,1923.4,1923.2,7.36924412]
[1688333056396,0.28709904,1923.4,1923.3,3.69794]
[1688333062599,0.28709904,1923.4,1923.3,3.59394]
[1688333063396,0.57381539,1923.4,1923.3,0.31194]
[1688333063700,4.16774539,1923.4,1923.3,0.31194]
[1688333064306,4.18686436,1923.4,1923.3,0.31194]
[1688333072107,9.18686436,1923.4,1923.3,0.31194]
[1688333073107,4.18686436,1923.4,1923.3,0.31194]
[1688333073301,10.12335613,1923.4,1923.3,0.31194]
[1688333091514,10.13335613,1923.4,1923.3,0.31194]
[1688333095019,10.09976565,1923.4,1923.3,0.31194]
[1688333095220,10.09976565,1923.4,1923.3,5.59854]
[1688333100419,9.8130493,1923.4,1923.3,5.59854]
[1688333101222,10.09976565,1923.4,1923.3,5.59854]
[1688333106424,9.8130493,1923.4,1923.3,5.59854]
[1688333107120,5.94649177,1923.4,1923.3,5.59854]
[1688333107321,6.11953544,1923.4,1923.3,5.59854]
[1688333108023,6.40625179,1923.4,1923.3,5.59854]
[1688333110722,9.68825179,1923.4,1923.3,5.59854]
[1688333119123,9.40153544,1923.4,1923.3,5.59854]
[1688333123027,1.92830737,1923.4,1923.3,5.59854]
[1688333123424,1.61637737,1923.4,1923.3,5.59854]
[1688333125126,1.63549722,1923.4,1923.3,5.59854]
[1688333129333,1.63549722,1923.4,1923.3,5.70254]
[1688333129530,1.94741722,1923.4,1923.3,5.70254]
[1688333132842,0.49088178,1923.4,1923.3,5.70254]
[1688333137339,0.49088178,1923.4,1923.3,5.59854]
[1688333138241,0.77759813,1923.4,1923.3,5.59854]
[1688333138443,0.49088178,1923.4,1923.3,5.59854]
[1688333142938,1.42733586,1923.4,1923.3,5.59854]
[1688333145249,1.11541586,1923.4,1923.3,5.59854]
[1688333146444,0.17896178,1923.4,1923.3,5.59854]
[1688333148346,1.11541586,1923.4,1923.3,5.59854]
[1688333149447,1.11541586,1923.4,1923.3,8.80634]
[1688333152346,1.09629601,1923.4,1923.3,12.05834]
[1688333152545,0.15984193,1923.4,1923.3,12.05834]
[1688333156679,33.96931361,1924.4,1923.3,12.05834]
[1688333156680,17.47586314,1924.9,1924.0,0.41582]
[1688333156843,17.47586314,1924.9,1924.8,3.282]
[1688333156844,13.997,1924.9,1924.8,3.282]
[1688333157042,26.52797,1925.2,1924.9,0.31168]
[1688333157043,3.282,1925.2,1924.9,0.31168]
[1688333157255,0.30582293,1925.1,1924.9,3.59368]
[1688333157442,0.01910658,1925.0,1924.9,0.31168]
[1688333157753,3.269,1925.0,1924.9,0.31168]
[1688333158051,3.28810658,1925.0,1924.9,0.31168]
[1688333158260,0.01910658,1925.0,1924.9,3.56368]
[1688333158547,0.01910658,1925.1,1924.9,3.56368]
[1688333158756,0.01910658,1925.0,1924.9,3.56368]
[1688333159246,0.33077658,1925.0,1924.9,3.56368]
[1688333161852,0.01910658,1925.0,1924.9,3.56368]
[1688333162355,0.01910658,1925.0,1924.9,3.66768]
[1688333163158,0.01910658,1925.1,1924.9,3.66768]
[1688333163454,0.43426875,1925.2,1925.0,7.05728412]
[1688333163649,0.43426875,1925.2,1925.1,3.59365]
[1688333163850,0.45337265,1925.2,1925.1,3.59365]
[1688333164053,1.45389856,1925.2,1925.1,3.59365]
[1688333164950,1.45389856,1925.2,1925.1,3.69765]
[1688333165758,1.76552856,1925.2,1925.1,0.31165]
[1688333165953,5.33424491,1925.2,1925.1,0.31165]
[1688333166353,1.45389856,1925.2,1925.1,3.69765]
[1688333166553,1.76552856,1925.2,1925.1,3.59365]
[1688333167457,1.45389856,1925.2,1925.1,3.59365]
[1688333170264,2.05224491,1925.2,1925.1,3.59365]
[1688333170471,1.74061491,1925.2,1925.1,3.59365]
[1688333170677,1.45389856,1925.2,1925.1,3.59365]
[1688333173172,1.76552856,1925.2,1925.1,3.59365]
[1688333173567,1.45389856,1925.2,1925.1,3.59365]
[1688333174976,2.05224491,1925.2,1925.1,3.59365]
[1688333175574,1.76552856,1925.2,1925.1,3.59365]
[1688333175967,2.05224491,1925.2,1925.1,3.59365]
[1688333176574,1.76552856,1925.2,1925.1,3.59365]
[1688333177773,2.05224491,1925.2,1925.1,3.59365]
[1688333177968,1.76552856,1925.2,1925.1,3.59365]
[1688333178771,1.45389856,1925.2,1925.1,3.59365]
[1688333181068,1.76552856,1925.2,1925.1,3.59365]
[1688333182280,2.05224491,1925.2,1925.1,3.59365]
[1688333188282,1.76552856,1925.2,1925.1,3.59365]
[1688333191189,2.05224491,1925.2,1925.1,3.59365]
[1688333191592,1.76552856,1925.2,1925.1,3.59365]
[1688333194391,2.05224491,1925.2,1925.1,3.59365]
[1688333194593,3.64047568,1925.2,1925.1,3.59365]
[1688333195790,3.35375933,1925.2,1925.1,3.59365]
[1688333195991,3.64047568,1925.2,1925.1,3.59365]
[1688333198394,3.35375933,1925.2,1925.1,3.59365]
[1688333198594,3.04212933,1925.2,1925.1,3.59365]
[1688333204108,3.35375933,1925.2,1925.1,3.59365]
[1688333204709,3.64047568,1925.2,1925.1,3.59365]
[1688333205399,3.04212933,1925.2,1925.1,3.59365]
[1688333205908,3.64047568,1925.2,1925.1,3.59365]
[1688333207807,3.32884568,1925.2,1925.1,3.59365]
[1688333207999,3.04212933,1925.2,1925.1,3.59365]
[1688333211311,3.32884568,1925.2,1925.1,3.59365]
[1688333212210,3.32884568,1925.2,1924.9,7.48911434]
[1688333212211,6.90947568,1925.2,1924.9,7.48911434]
[1688333212412,0.95476261,1925.1,1924.8,0.78702221]
[1688333212601,3.89949025,1925.0,1924.8,0.50604231]
[1688333212908,1.07383741,1924.9,1924.8,0.50604231]
[1688333213108,1.38551741,1924.9,1924.8,0.50604231]
[1688333213310,2.32117612,1924.9,1924.8,0.50604231]
[1688333214208,2.32117612,1924.9,1924.8,0.3117]
[1688333219217,2.32117612,1924.9,1924.8,3.5637]
[1688333219412,1.38551741,1924.9,1924.8,6.7715]
[1688333220414,1.38551741,1924.9,1924.8,6.61491117]
[1688333222718,1.38551741,1924.9,1924.8,6.64491117]
[1688333223314,1.38551741,1924.9,1924.8,3.43711117]
[1688333224509,1.07383741,1924.9,1924.8,3.43711117]
[1688333224717,1.80268147,1924.9,1924.8,3.43711117]
[1688333225113,0.10550147,1924.9,1924.8,3.43711117]
[1688333225318,0.7911549,1924.9,1924.8,3.43711117]
[1688333225617,0.0077783,1925.2,1924.9,0.104]
[1688333225817,0.0077783,1925.2,1925.1,3.56365]
[1688333226220,0.02688045,1925.2,1925.1,3.56365]
[1688333228318,0.45285432,1925.2,1925.1,3.56365]
[1688333228522,0.02688045,1925.2,1925.1,3.66765]
[1688333232128,0.6252268,1925.2,1925.1,3.56365]
[1688333232919,1.40027921,1925.2,1925.1,3.56365]
[1688333233323,1.40027921,1925.2,1925.1,0.31165]
[1688333233518,2.33593792,1925.2,1925.1,0.31165]
[1688333233724,2.35503901,1925.2,1925.1,0.31165]
[1688333234135,2.35503906,1925.2,1925.1,0.31165]
[1688333239839,2.04340906,1925.2,1925.1,0.31165]
[1688333240040,2.35503906,1925.2,1925.1,0.31165]
[1688333241839,2.04340906,1925.2,1925.1,0.31165]
[1688333242638,1.75669271,1925.2,1925.1,3.59365]
[1688333244949,2.04340906,1925.2,1925.1,3.59365]
[1688333245337,1.73759157,1925.2,1925.1,3.69765]
[1688333245544,0.80193286,1925.2,1925.1,3.69765]
[1688333255158,3.25970648,1925.5,1925.1,3.69765]
[1688333255159,2.48066648,1925.5,1925.2,0.56748412]
[1688333255350,0.28671635,1925.4,1925.3,3.56362]
[1688333255750,1.54500777,1925.5,1925.3,3.56362]
[1688333255946,4.21765871,1925.6,1925.3,3.56362]
[1688333256152,0.30581547,1925.5,1925.3,3.56362]
[1688333256350,0.28671635,1925.5,1925.3,3.56362]
[1688333256950,0.28671635,1925.5,1925.4,3.282]
[1688333257149,0.01909912,1925.5,1925.4,3.59361]
[1688333258554,0.30581547,1925.5,1925.4,3.59361]
[1688333258755,0.01909912,1925.5,1925.4,3.59361]
[1688333258956,0.01909912,1925.5,1925.4,4.16109412]
[1688333261852,0.30581547,1925.5,1925.4,4.16109412]
[1688333262358,0.01909912,1925.5,1925.4,4.16109412]
[1688333262855,1.59982133,1925.5,1925.4,4.16109412]
[1688333263257,1.59982133,1925.5,1925.4,4.26509412]
[1688333263478,1.88653768,1925.5,1925.3,3.51942]
[1688333263665,3.28809966,1925.4,1925.2,0.31164]
[1688333263962,0.28671635,1925.3,1925.2,0.31163]
[1688333264267,2.17754135,1925.3,1925.2,0.31163]
[1688333264470,1.53400506,1925.3,1925.2,0.31163]
[1688333264658,1.86591552,1925.3,1925.2,0.31163]
[1688333264969,1.57919917,1925.3,1925.2,0.31163]
[1688333265165,1.86591552,1925.3,1925.2,0.31163]
[1688333265662,1.57919917,1925.3,1925.2,3.59363]
[1688333267466,2.17754552,1925.3,1925.2,3.59363]
[1688333267971,1.89082917,1925.3,1925.2,3.59363]
[1688333268866,1.57919917,1925.3,1925.2,3.59363]
[1688333271470,2.17754552,1925.3,1925.2,3.59363]
[1688333271667,2.17754552,1925.3,1925.2,3.282]
[1688333271865,5.4786461,1925.3,1925.1,0.82569394]
[1688333272065,1.57919917,1925.3,1925.2,3.59364]
[1688333272266,1.86591552,1925.3,1925.2,3.59364]
[1688333272472,2.17754552,1925.3,1925.2,3.59364]
[1688333273067,2.17754552,1925.3,1925.2,0.31164]
[1688333273877,1.57919917,1925.3,1925.2,0.31164]
[1688333274574,1.99079811,1925.3,1925.2,0.31164]
[1688333275276,2.27751446,1925.3,1925.2,0.31164]
[1688333275872,1.99079811,1925.3,1925.2,0.31164]
[1688333276074,2.27751446,1925.3,1925.2,0.31164]
[1688333279673,1.99079811,1925.3,1925.2,0.31164]
[1688333281073,1.99079811,1925.3,1925.2,3.56364]
[1688333281776,1.99079811,1925.3,1925.2,3.66764]
[1688333281974,1.0551394,1925.3,1925.2,3.66764]
[1688333283269,1.0551394,1925.3,1925.2,8.87264]
[1688333283270,3.94e-05,1925.3,1925.2,8.87264]
[1688333283475,0.64230432,1925.3,1925.2,8.87264]
[1688333283676,1.58533931,1925.6,1925.2,8.87264]
[1688333283877,1.58533931,1925.6,1925.5,3.252]
[1688333284181,1.60443795,1925.6,1925.5,3.56359]
[1688333284578,0.02688478,1925.6,1925.5,3.56359]
[1688333284881,0.33845478,1925.6,1925.5,3.56359]
[1688333285382,0.02688478,1925.6,1925.5,3.56359]
[1688333285583,0.02688478,1925.6,1925.5,3.66759]
[1688333285881,0.33846478,1925.6,1925.5,3.66759]
[1688333286077,0.33846478,1925.6,1925.5,3.56359]
[1688333286281,0.75630753,1925.6,1925.5,3.56359]
[1688333286477,0.02688478,1925.6,1925.5,3.56359]
[1688333287180,0.02688478,1925.6,1925.5,3.66759]
[1688333287782,0.33845478,1925.6,1925.5,3.66759]
[1688333287982,0.02688478,1925.6,1925.5,3.66759]
[1688333288286,0.33846478,1925.6,1925.5,3.66759]
[1688333288677,0.02688478,1925.6,1925.5,3.66759]
[1688333289180,0.33846478,1925.6,1925.5,3.66759]
[1688333290282,3.88970099,1925.6,1925.4,0.56748412]
[1688333290585,3.88970099,1925.6,1925.2,1.03871]
[1688333290586,5.0,1925.2,1924.4,3.2078]
[1688333290786,3.282,1924.8,1924.5,4.06134]
[1688333290979,0.59843635,1924.7,1924.5,4.06134]
[1688333291179,0.83489406,1924.7,1924.5,3.67770858]
[1688333291377,0.83489406,1924.7,1924.4,0.31176]
[1688333291378,3.83648412,1924.6,1924.4,0.31176]
[1688333291584,0.83493769,1924.5,1924.4,0.31176]
[1688333291785,0.23646134,1924.5,1924.4,0.31177]
[1688333292683,0.23646134,1924.5,1924.4,3.59377]
[1688333295790,0.54821134,1924.5,1924.4,3.59377]
[1688333296090,0.23646134,1924.5,1924.4,3.59377]
[1688333296986,0.54822134,1924.5,1924.4,3.59377]
[1688333299583,0.83493769,1924.5,1924.4,3.59377]
[1688333299787,0.54822134,1924.5,1924.4,3.59377]
[1688333301890,0.83493769,1924.5,1924.4,3.59377]
[1688333302689,1.24177293,1924.5,1924.4,3.59377]
[1688333305195,0.95505658,1924.5,1924.4,3.59377]
[1688333307185,1.24177293,1924.5,1924.4,3.59377]
[1688333308699,0.95505658,1924.5,1924.4,3.59377]
[1688333310992,0.64329658,1924.5,1924.4,3.59377]
[1688333311301,0.93001293,1924.5,1924.4,3.59377]
[1688333311692,1.24176293,1924.5,1924.4,3.59377]
[1688333311891,0.64329658,1924.5,1924.4,3.59377]
[1688333314298,0.95505658,1924.5,1924.4,3.59377]
[1688333314502,1.24177293,1924.5,1924.4,3.59377]
[1688333314994,0.95505658,1924.5,1924.4,3.59377]
[1688333315492,1.24177293,1924.5,1924.4,3.59377]
[1688333315895,0.95505658,1924.5,1924.4,3.59377]
[1688333316794,1.24177293,1924.5,1924.4,3.59377]
[1688333317824,0.3117,1924.9,1924.4,15.39257]
[1688333318001,0.935,1925.2,1924.8,3.282]
[1688333318002,5.36846,1925.1,1924.8,3.282]
[1688333318305,6.30410359,1925.1,1924.9,3.59369]
[1688333318594,6.59081994,1925.1,1924.9,4.16117412]
[1688333318786,0.93564359,1925.0,1924.9,4.16117412]
[1688333318991,6.27915994,1925.1,1924.9,4.16117412]
[1688333320295,5.99244359,1925.1,1924.9,4.16117412]
[1688333322804,5.99244359,1925.1,1925.0,3.282]
[1688333323099,5.99244359,1925.1,1925.0,3.59367]
[1688333323291,5.0568,1925.1,1925.0,3.59367]
[1688333325591,5.26613386,1925.1,1925.0,3.59367]
[1688333325800,6.20177745,1925.1,1925.0,3.59367]
[1688333326005,6.20177745,1925.1,1925.0,6.80147]
[1688333327913,6.4884938,1925.1,1925.0,6.80147]
[1688333328098,10.10025595,1925.1,1925.0,0.31167]
[1688333328403,10.10025595,1925.1,1924.9,0.31169]
[1688333328602,5.08379771,1925.0,1924.9,0.31169]
[1688333328901,5.2931596,1925.0,1924.9,0.31169]
[1688333329207,5.2931596,1925.0,1924.8,3.98704]
[1688333329397,0.28671635,1924.9,1924.8,3.98704]
[1688333329705,0.49608427,1924.9,1924.8,3.98704]
[1688333330705,0.20936792,1924.9,1924.8,7.26904]
[1688333330909,4.08977427,1924.9,1924.7,4.16119412]
[1688333331206,4.08977427,1924.9,1924.7,3.59371]
[1688333332799,4.08977427,1924.9,1924.7,0.31171]
[1688333340798,4.49727636,1924.9,1924.7,0.31171]
[1688333341003,5.43291995,1924.9,1924.7,0.31171]
[1688333348407,5.06476048,1924.9,1924.7,0.31171]
[1688333348604,6.00040407,1924.9,1924.7,0.31171]
[1688333352823,3.269,1924.8,1924.7,0.31171]
[1688333353018,3.58071,1924.8,1924.7,0.31171]
[1688333353213,4.72590926,1924.8,1924.7,0.31171]
[1688333357241,1.14519926,1924.8,1924.7,3.59371]
[1688333357414,0.20955567,1924.8,1924.7,3.69771]
[1688333357617,0.71918209,1924.9,1924.7,3.69771]
[1688333358024,0.20959286,1924.8,1924.7,3.69771]
[1688333358523,1.65482568,1924.9,1924.7,3.69771]
[1688333358722,0.20959886,1924.8,1924.7,3.69771]
[1688333358917,0.3117,1924.8,1924.7,3.69771]
[1688333359123,0.52130284,1924.8,1924.7,3.69771]
[1688333364436,0.52130284,1924.8,1924.7,3.59371]
[1688333369229,0.20960284,1924.8,1924.7,3.69771]
[1688333369434,1.34314568,1924.9,1924.7,3.69771]
[1688333369747,0.40750209,1924.9,1924.8,6.7715]
[1688333369941,0.93564359,1925.0,1924.8,7.33898412]
[1688333370141,0.93564359,1925.0,1924.9,3.282]
[1688333370336,0.93564359,1925.0,1924.9,3.59368]
[1688333370535,1.53402994,1925.0,1924.9,3.59368]
[1688333370737,1.74372445,1925.0,1924.9,3.59368]
[1688333372343,2.16760955,1925.0,1924.9,3.59368]
[1688333372641,2.16760955,1925.0,1924.9,0.31168]
[1688333374342,1.8808932,1925.0,1924.9,0.31168]
[1688333375448,2.16760955,1925.0,1924.9,0.31168]
[1688333377948,1.8808932,1925.0,1924.9,0.31168]
[1688333378746,1.5692232,1925.0,1924.9,0.31168]
[1688333380653,2.16760955,1925.0,1924.9,0.31168]
[1688333381651,1.8808932,1925.0,1924.9,0.31168]
[1688333382348,1.5692232,1925.0,1924.9,0.31168]
[1688333382745,1.5692232,1925.0,1924.9,3.69768]
[1688333382952,0.63357961,1925.0,1924.9,3.69768]
[1688333383553,0.63357961,1925.0,1924.9,8.90268]
[1688333385351,0.20969451,1925.0,1924.9,8.90268]
[1688333385745,0.93564359,1925.2,1924.9,8.90268]
[1688333385952,0.93564359,1925.2,1925.1,6.80145]
[1688333386254,0.93564359,1925.4,1925.1,6.80145]
[1688333386449,0.93564359,1925.4,1925.1,12.00325]
[1688333386651,0.93564359,1925.4,1925.2,0.56748412]
[1688333386852,0.93564359,1925.4,1925.3,0.31162]
[1688333387157,0.9547433,1925.4,1925.3,0.31162]
[1688333387353,1.24145965,1925.4,1925.3,0.31162]
[1688333387949,1.55305965,1925.4,1925.3,0.31162]
[1688333388154,1.2663433,1925.4,1925.3,0.31162]
[1688333388455,1.55305965,1925.4,1925.3,0.31162]
[1688333392356,1.2663433,1925.4,1925.3,0.31162]
[1688333392658,1.24145965,1925.4,1925.3,0.31162]
[1688333392854,1.24724359,1925.4,1925.3,3.51942]
[1688333395358,1.53395994,1925.4,1925.3,3.51942]
[1688333398456,1.24724359,1925.4,1925.3,3.51942]
[1688333399565,0.93564359,1925.4,1925.3,3.51942]
[1688333400354,1.24724359,1925.4,1925.3,6.80142]
[1688333401765,0.93564359,1925.4,1925.3,6.80142]
[1688333401964,1.24724359,1925.4,1925.3,6.80142]
[1688333403967,0.93564359,1925.4,1925.3,6.80142]
[1688333404161,6.68507214,1925.5,1925.3,6.80142]
[1688333404464,0.93564359,1925.4,1925.3,6.80142]
[1688333404868,0.93564359,1925.4,1925.3,7.36890412]
[1688333405070,6.37348214,1925.5,1925.3,7.36890412]
[1688333405966,6.68508214,1925.5,1925.3,7.36890412]
[1688333406164,1.23381486,1925.4,1925.3,7.36890412]
[1688333406379,1.23381486,1925.4,1925.3,12.67790412]
[1688333406560,0.003306,1925.6,1925.3,12.67790412]
[1688333406765,0.003306,1925.6,1925.5,6.4898]
[1688333406960,0.003306,1925.6,1925.5,7.36887412]
[1688333407359,0.003306,1925.6,1925.5,4.08687412]
[1688333407573,0.60160235,1925.6,1925.5,6.80139]
[1688333407773,0.003306,1925.6,1925.5,6.80139]
[1688333408970,0.314886,1925.6,1925.5,6.80139]
[1688333409677,0.003306,1925.6,1925.5,6.80139]
[1688333410272,0.314886,1925.6,1925.5,6.80139]
[1688333414278,0.61092815,1925.6,1925.5,6.80139]
[1688333414979,0.8976445,1925.6,1925.5,6.80139]